[Event "Early-Titled-Tuesday-Blitz-March-26-2024"]
[Site "Chess.com"]
[Date "2024.03.26"]
[Round "2"]
[White "stratacticos"]
[Black "ajeale2"]
[Result "0-1"]
[WhiteElo "1858"]
[BlackElo "2451"]
[TimeControl "180+1"]
[EndTime "8:18:37 PDT"]
[Termination "ajeale2 won on time"]

1. b4 {[%clk 0:02:44.6]} 1... e5 {[%clk 0:02:59.1]} 2. Bb2 {[%clk 0:02:42.1]}
2... Bxb4 {[%clk 0:02:52.7]} 3. Bxe5 {[%clk 0:02:41]} 3... Nf6 {[%clk
0:02:53.2]} 4. a3 {[%clk 0:02:39.9]} 4... Bc5 {[%clk 0:02:52.4]} 5. e3 {[%clk
0:02:27.8]} 5... Nc6 {[%clk 0:02:50.7]} 6. Bb2 {[%clk 0:02:20.5]} 6... O-O
{[%clk 0:02:47]} 7. Nf3 {[%clk 0:02:17.8]} 7... d5 {[%clk 0:02:46.3]} 8. Be2
{[%clk 0:02:17.1]} 8... Bf5 {[%clk 0:02:45.4]} 9. O-O {[%clk 0:02:13.8]} 9... d4
{[%clk 0:02:45.4]} 10. Nxd4 {[%clk 0:01:53.1]} 10... Nxd4 {[%clk 0:02:43.6]} 11.
Bxd4 {[%clk 0:01:52.8]} 11... Bxd4 {[%clk 0:02:44.4]} 12. exd4 {[%clk
0:01:52.6]} 12... Qxd4 {[%clk 0:02:45.3]} 13. Nc3 {[%clk 0:01:51.7]} 13... Rad8
{[%clk 0:02:43.9]} 14. Bf3 {[%clk 0:01:45]} 14... Qxd2 {[%clk 0:01:45.3]} 15.
Qxd2 {[%clk 0:01:42.1]} 15... Rxd2 {[%clk 0:01:44.9]} 16. Bxb7 {[%clk
0:01:37.1]} 16... Rxc2 {[%clk 0:01:44.3]} 17. Nd1 {[%clk 0:01:34.1]} 17... Rb8
{[%clk 0:01:20.3]} 18. Ne3 {[%clk 0:01:29.6]} 18... Rxb7 {[%clk 0:01:19.7]} 19.
Nxf5 {[%clk 0:01:29]} 19... g6 {[%clk 0:01:20]} 20. Ne3 {[%clk 0:01:26.5]} 20...
Rc3 {[%clk 0:01:20.1]} 21. Rfc1 {[%clk 0:01:19.8]} 21... Rbb3 {[%clk 0:01:03.3]}
22. Rxc3 {[%clk 0:01:18.9]} 22... Rxc3 {[%clk 0:01:03.2]} 23. a4 {[%clk
0:01:16.8]} 23... Ne4 {[%clk 0:00:45.6]} 24. h4 {[%clk 0:01:08.1]} 24... Kg7
{[%clk 0:00:40.8]} 25. Rb1 {[%clk 0:01:02.9]} 25... Nd6 {[%clk 0:00:35.1]} 26.
Nd5 {[%clk 0:00:53.4]} 26... Rc4 {[%clk 0:00:32.8]} 27. h5 {[%clk 0:00:52.5]}
27... c6 {[%clk 0:00:28.9]} 28. Ne3 {[%clk 0:00:43.6]} 28... Rxa4 {[%clk
0:00:27.8]} 29. hxg6 {[%clk 0:00:42.4]} 29... hxg6 {[%clk 0:00:27.4]} 30. Rd1
{[%clk 0:00:36.5]} 30... Nc4 {[%clk 0:00:24.5]} 31. Nxc4 {[%clk 0:00:28.2]}
31... Rxc4 {[%clk 0:00:24.3]} 32. Ra1 {[%clk 0:00:27.6]} 32... c5 {[%clk
0:00:21.7]} 33. Rxa7 {[%clk 0:00:26.6]} 33... Rc1+ {[%clk 0:00:22.3]} 34. Kh2
{[%clk 0:00:26.1]} 34... c4 {[%clk 0:00:19.8]} 35. g4 {[%clk 0:00:25.8]} 35...
c3 {[%clk 0:00:16.1]} 36. Rc7 {[%clk 0:00:25]} 36... Kf6 {[%clk 0:00:16.2]} 37.
f4 {[%clk 0:00:23.7]} 37... Ke6 {[%clk 0:00:13.7]} 38. Kg2 {[%clk 0:00:21.7]}
38... c2 {[%clk 0:00:10.8]} 39. Kh2 {[%clk 0:00:19.5]} 39... Kd5 {[%clk
0:00:10.9]} 40. Kg2 {[%clk 0:00:16.3]} 40... Ke4 {[%clk 0:00:11.3]} 41. f5
{[%clk 0:00:14.6]} 41... g5 {[%clk 0:00:09.4]} 42. Rc4+ {[%clk 0:00:09.8]} 42...
Kd3 {[%clk 0:00:08.2]} 43. Rc7 {[%clk 0:00:08.2]} 43... Re1 {[%clk 0:00:07.6]}
44. Rd7+ {[%clk 0:00:05.7]} 44... Ke3 {[%clk 0:00:07.9]} 45. Re7+ {[%clk
0:00:05.3]} 45... Kd2 {[%clk 0:00:08.3]} 46. Rd7+ {[%clk 0:00:05.1]} 46... Kc3
{[%clk 0:00:07.5]} 47. Rc7+ {[%clk 0:00:04.7]} 47... Kd3 {[%clk 0:00:07]} 48.
Rd7+ {[%clk 0:00:04.6]} 48... Kc3 {[%clk 0:00:02.9]} 49. Rc7+ {[%clk 0:00:04.5]}
49... Kb2 {[%clk 0:00:03.6]} 50. Rb7+ {[%clk 0:00:04.2]} 50... Kc1 {[%clk
0:00:04.1]} 51. Rxf7 {[%clk 0:00:02.8]} 51... Re4 {[%clk 0:00:03.3]} 52. Rc7
{[%clk 0:00:01.4]} 52... Kd2 {[%clk 0:00:03.3]} 0-1

[Event "Early-Titled-Tuesday-Blitz-March-26-2024"]
[Site "Chess.com"]
[Date "2024.03.26"]
[Round "2"]
[White "Dixit_Nikhil"]
[Black "Chessmissile07"]
[Result "0-1"]
[WhiteElo "2630"]
[BlackElo "2935"]
[TimeControl "180+1"]
[EndTime "8:18:39 PDT"]
[Termination "Chessmissile07 won by resignation"]

1. e4 {[%clk 0:03:00.9]} 1... a6 {[%clk 0:03:00.9]} 2. d4 {[%clk 0:02:59]} 2...
d5 {[%clk 0:02:58.8]} 3. exd5 {[%clk 0:02:58.5]} 3... Qxd5 {[%clk 0:02:59.7]} 4.
Nc3 {[%clk 0:02:57]} 4... Qd6 {[%clk 0:02:59.8]} 5. g3 {[%clk 0:02:56]} 5... Nf6
{[%clk 0:02:59.5]} 6. Bg2 {[%clk 0:02:56.1]} 6... g6 {[%clk 0:02:59]} 7. Nf3
{[%clk 0:02:53.6]} 7... Bg7 {[%clk 0:02:58.8]} 8. O-O {[%clk 0:02:53.4]} 8...
O-O {[%clk 0:02:58.7]} 9. Bf4 {[%clk 0:02:53.4]} 9... Qb6 {[%clk 0:02:46.8]} 10.
Na4 {[%clk 0:02:44.1]} 10... Qb5 {[%clk 0:02:30.8]} 11. b3 {[%clk 0:02:29.5]}
11... Qd7 {[%clk 0:02:27.6]} 12. c4 {[%clk 0:02:12.7]} 12... Qd8 {[%clk
0:02:27.2]} 13. d5 {[%clk 0:02:10.4]} 13... Nbd7 {[%clk 0:02:00.1]} 14. Re1
{[%clk 0:02:09.1]} 14... Nh5 {[%clk 0:01:58.1]} 15. Be3 {[%clk 0:02:04.1]} 15...
Bxa1 {[%clk 0:01:56]} 16. Qxa1 {[%clk 0:02:05]} 16... Ndf6 {[%clk 0:01:54.8]}
17. h3 {[%clk 0:02:02.6]} 17... Ng7 {[%clk 0:01:51.9]} 18. g4 {[%clk 0:02:01.8]}
18... Re8 {[%clk 0:01:42.9]} 19. Bd4 {[%clk 0:01:59.6]} 19... b5 {[%clk
0:01:29]} 20. Nc5 {[%clk 0:01:56.9]} 20... bxc4 {[%clk 0:01:20.4]} 21. bxc4
{[%clk 0:01:56.9]} 21... a5 {[%clk 0:01:18.7]} 22. Ne5 {[%clk 0:01:55.4]} 22...
Qd6 {[%clk 0:01:14.8]} 23. Nc6 {[%clk 0:01:46.8]} 23... Ba6 {[%clk 0:00:51.8]}
24. Nxa6 {[%clk 0:01:27.3]} 24... Rxa6 {[%clk 0:00:52.7]} 25. Be5 {[%clk
0:01:08.7]} 25... Qd7 {[%clk 0:00:45.9]} 26. Qd4 {[%clk 0:01:01.5]} 26... Rb6
{[%clk 0:00:43.7]} 27. Qc5 {[%clk 0:00:44.7]} 27... a4 {[%clk 0:00:27.4]} 28.
Ba1 {[%clk 0:00:43.7]} 28... Qd6 {[%clk 0:00:18]} 29. Qd4 {[%clk 0:00:35]} 29...
Rxc6 {[%clk 0:00:18.4]} 30. dxc6 {[%clk 0:00:35.2]} 30... Qxd4 {[%clk
0:00:19.3]} 31. Bxd4 {[%clk 0:00:35.5]} 31... Ne6 {[%clk 0:00:20.2]} 32. Be5
{[%clk 0:00:33.2]} 32... Rb8 {[%clk 0:00:18.8]} 33. f4 {[%clk 0:00:33.6]} 33...
Ne8 {[%clk 0:00:18.3]} 34. f5 {[%clk 0:00:33.7]} 34... Nc5 {[%clk 0:00:18]} 35.
fxg6 {[%clk 0:00:30.4]} 35... hxg6 {[%clk 0:00:18.9]} 36. Rd1 {[%clk 0:00:29.6]}
36... Nd6 {[%clk 0:00:18.7]} 37. Bd4 {[%clk 0:00:27.3]} 37... Ne6 {[%clk
0:00:17.7]} 38. Bf2 {[%clk 0:00:27.4]} 38... Nxc4 {[%clk 0:00:17.4]} 39. Bg3
{[%clk 0:00:26.4]} 39... Nd6 {[%clk 0:00:17.4]} 40. Bd5 {[%clk 0:00:16.1]} 40...
Rb2 {[%clk 0:00:17]} 41. Rc1 {[%clk 0:00:15.6]} 41... Rd2 {[%clk 0:00:15.3]} 42.
Bxe6 {[%clk 0:00:15.1]} 42... fxe6 {[%clk 0:00:15.5]} 43. a3 {[%clk 0:00:14.4]}
43... Rd3 {[%clk 0:00:15.1]} 44. Bxd6 {[%clk 0:00:13.2]} 44... exd6 {[%clk
0:00:15.2]} 45. Rb1 {[%clk 0:00:13.5]} 45... Rc3 {[%clk 0:00:13.5]} 46. Rb4
{[%clk 0:00:13]} 46... Rxc6 {[%clk 0:00:12.3]} 47. Rxa4 {[%clk 0:00:13.7]} 47...
Rc3 {[%clk 0:00:12.5]} 48. Kg2 {[%clk 0:00:14.2]} 48... g5 {[%clk 0:00:11.7]}
49. Ra8+ {[%clk 0:00:13.8]} 49... Kf7 {[%clk 0:00:11.8]} 50. a4 {[%clk
0:00:14.7]} 50... c5 {[%clk 0:00:09.8]} 51. a5 {[%clk 0:00:15.2]} 51... Ra3
{[%clk 0:00:10.3]} 52. a6 {[%clk 0:00:15.8]} 52... Kf6 {[%clk 0:00:10.8]} 53. a7
{[%clk 0:00:15.7]} 53... Ke5 {[%clk 0:00:11.4]} 54. h4 {[%clk 0:00:16.2]} 54...
gxh4 {[%clk 0:00:10.8]} 55. g5 {[%clk 0:00:16.6]} 55... c4 {[%clk 0:00:09.9]}
56. g6 {[%clk 0:00:16.8]} 56... d5 {[%clk 0:00:06.1]} 57. g7 {[%clk 0:00:17.1]}
57... Rg3+ {[%clk 0:00:06]} 58. Kf2 {[%clk 0:00:15.9]} 58... Rxg7 {[%clk
0:00:06.9]} 0-1

[Event "Early-Titled-Tuesday-Blitz-March-26-2024"]
[Site "Chess.com"]
[Date "2024.03.26"]
[Round "2"]
[White "KNVB"]
[Black "valeriocarnicelli"]
[Result "0-1"]
[WhiteElo "2786"]
[BlackElo "2565"]
[TimeControl "180+1"]
[EndTime "8:18:41 PDT"]
[Termination "valeriocarnicelli won by resignation"]

1. e4 {[%clk 0:03:00.9]} 1... c5 {[%clk 0:02:59.5]} 2. e5 {[%clk 0:03:00.7]}
2... Nc6 {[%clk 0:02:59.1]} 3. c3 {[%clk 0:03:01.6]} 3... Nxe5 {[%clk 0:02:55]}
4. d4 {[%clk 0:03:01.6]} 4... cxd4 {[%clk 0:02:51.6]} 5. cxd4 {[%clk 0:03:02.5]}
5... Ng6 {[%clk 0:02:49]} 6. h4 {[%clk 0:03:02.5]} 6... e6 {[%clk 0:02:42]} 7.
Nc3 {[%clk 0:03:02.3]} 7... Nf6 {[%clk 0:02:41.2]} 8. Bd3 {[%clk 0:02:58.2]}
8... a6 {[%clk 0:02:30.9]} 9. h5 {[%clk 0:02:39.8]} 9... Ne7 {[%clk 0:02:31.1]}
10. h6 {[%clk 0:02:40.6]} 10... g6 {[%clk 0:02:31.7]} 11. Bg5 {[%clk 0:02:41]}
11... Nc6 {[%clk 0:02:20]} 12. d5 {[%clk 0:02:24.8]} 12... Ne5 {[%clk
0:02:17.3]} 13. Bc2 {[%clk 0:02:19.3]} 13... d6 {[%clk 0:02:00.3]} 14. Nf3
{[%clk 0:01:03.2]} 14... Nxf3+ {[%clk 0:01:50.3]} 15. Qxf3 {[%clk 0:01:04.1]}
15... Be7 {[%clk 0:01:50.5]} 16. dxe6 {[%clk 0:00:53.2]} 16... fxe6 {[%clk
0:01:51]} 17. O-O-O {[%clk 0:00:52.4]} 17... O-O {[%clk 0:01:49.6]} 18. Kb1
{[%clk 0:00:48]} 18... Rb8 {[%clk 0:01:41.7]} 19. Bb3 {[%clk 0:00:37.3]} 19...
b5 {[%clk 0:01:23.5]} 20. Rhe1 {[%clk 0:00:12.3]} 20... b4 {[%clk 0:01:23.9]}
21. Ne4 {[%clk 0:00:02.4]} 21... d5 {[%clk 0:00:55.8]} 22. Bxf6 {[%clk
0:00:02.3]} 22... Bxf6 {[%clk 0:00:56.7]} 23. Nxf6+ {[%clk 0:00:02.6]} 23...
Qxf6 {[%clk 0:00:50.1]} 24. Qg3 {[%clk 0:00:02.6]} 24... Bd7 {[%clk 0:00:42.3]}
25. f3 {[%clk 0:00:02.7]} 25... a5 {[%clk 0:00:39.6]} 26. Qc7 {[%clk 0:00:02.8]}
26... Qd8 {[%clk 0:00:17.6]} 27. Qd6 {[%clk 0:00:01.7]} 27... a4 {[%clk
0:00:16.4]} 28. Bc2 {[%clk 0:00:02.3]} 28... a3 {[%clk 0:00:13.6]} 29. Re2
{[%clk 0:00:01.6]} 29... Qf6 {[%clk 0:00:11.6]} 30. Bb3 {[%clk 0:00:01.2]} 30...
Rfd8 {[%clk 0:00:10.1]} 31. Rde1 {[%clk 0:00:01.3]} 31... Bc8 {[%clk 0:00:06.9]}
32. Qc7 {[%clk 0:00:01.3]} 32... Ba6 {[%clk 0:00:05.9]} 33. Rd2 {[%clk
0:00:01.3]} 33... axb2 {[%clk 0:00:05.7]} 34. Qe5 {[%clk 0:00:01.4]} 34... Qxe5
{[%clk 0:00:05.5]} 35. Rxe5 {[%clk 0:00:02.3]} 35... Rd6 {[%clk 0:00:05.7]} 36.
Kxb2 {[%clk 0:00:02.4]} 36... Rbd8 {[%clk 0:00:05.7]} 37. f4 {[%clk 0:00:02.9]}
37... Bc4 {[%clk 0:00:05.7]} 38. Bc2 {[%clk 0:00:02.2]} 38... Kf7 {[%clk
0:00:05.6]} 39. g4 {[%clk 0:00:02.5]} 39... Kf6 {[%clk 0:00:05.9]} 40. g5+
{[%clk 0:00:02.9]} 40... Kf7 {[%clk 0:00:06.5]} 41. Rd4 {[%clk 0:00:03.1]} 41...
Ra8 {[%clk 0:00:05.5]} 42. Bb1 {[%clk 0:00:03.2]} 42... Rda6 {[%clk 0:00:04.9]}
43. a4 {[%clk 0:00:02]} 43... bxa3+ {[%clk 0:00:04.6]} 44. Ka1 {[%clk
0:00:02.7]} 44... Rb6 {[%clk 0:00:05.1]} 45. f5 {[%clk 0:00:02.6]} 45... gxf5
{[%clk 0:00:04.9]} 46. Bxf5 {[%clk 0:00:02.9]} 46... exf5 {[%clk 0:00:04.9]} 47.
Rxf5+ {[%clk 0:00:03.7]} 47... Kg6 {[%clk 0:00:05.6]} 48. Rdf4 {[%clk
0:00:04.3]} 48... Rab8 {[%clk 0:00:05.4]} 49. Rf6+ {[%clk 0:00:04.4]} 49... Kxg5
{[%clk 0:00:06]} 50. R4f5+ {[%clk 0:00:04.2]} 50... Kg4 {[%clk 0:00:05]} 51.
Rf4+ {[%clk 0:00:04.2]} 51... Kg3 {[%clk 0:00:05.7]} 52. Rf3+ {[%clk 0:00:04.4]}
52... Kg2 {[%clk 0:00:06.3]} 53. Rxb6 {[%clk 0:00:04.9]} 53... Rxb6 {[%clk
0:00:05.6]} 54. Rxa3 {[%clk 0:00:05.8]} 54... Ra6 {[%clk 0:00:05.1]} 55. Rxa6
{[%clk 0:00:04.2]} 55... Bxa6 {[%clk 0:00:06]} 56. Kb2 {[%clk 0:00:04.9]} 56...
Kf3 {[%clk 0:00:05.7]} 57. Kc3 {[%clk 0:00:05.8]} 57... Kg4 {[%clk 0:00:06.2]}
58. Kd4 {[%clk 0:00:06.3]} 58... Kg5 {[%clk 0:00:06.8]} 59. Kxd5 {[%clk
0:00:06.9]} 59... Kxh6 {[%clk 0:00:07.4]} 60. Ke4 {[%clk 0:00:07.8]} 60... Kg5
{[%clk 0:00:07.9]} 61. Kf3 {[%clk 0:00:08.7]} 61... h5 {[%clk 0:00:07.9]} 62.
Kg2 {[%clk 0:00:09.6]} 62... h4 {[%clk 0:00:08.4]} 63. Kh2 {[%clk 0:00:10.5]}
63... Kg4 {[%clk 0:00:09]} 64. Kh1 {[%clk 0:00:11.4]} 64... h3 {[%clk
0:00:08.7]} 65. Kg1 {[%clk 0:00:12.3]} 65... Kg3 {[%clk 0:00:09.2]} 66. Kh1
{[%clk 0:00:12.8]} 66... Bb7+ {[%clk 0:00:09.6]} 67. Kg1 {[%clk 0:00:13.6]}
67... h2+ {[%clk 0:00:10.2]} 68. Kf1 {[%clk 0:00:14.4]} 68... h1=Q+ {[%clk
0:00:10.8]} 69. Ke2 {[%clk 0:00:15.1]} 69... Qe4+ {[%clk 0:00:11.1]} 0-1

[Event "Early-Titled-Tuesday-Blitz-March-26-2024"]
[Site "Chess.com"]
[Date "2024.03.26"]
[Round "2"]
[White "Andrey_Klymchuk"]
[Black "stasOR4ik"]
[Result "1/2-1/2"]
[WhiteElo "2688"]
[BlackElo "2426"]
[TimeControl "180+1"]
[EndTime "8:18:41 PDT"]
[Termination "Game drawn - insufficient material"]

1. e4 {[%clk 0:03:00.9]} 1... c6 {[%clk 0:02:51.6]} 2. d4 {[%clk 0:03:00.3]}
2... d5 {[%clk 0:02:52.3]} 3. e5 {[%clk 0:03:00.8]} 3... c5 {[%clk 0:02:52.7]}
4. dxc5 {[%clk 0:03:00.7]} 4... Nc6 {[%clk 0:02:49.3]} 5. f4 {[%clk 0:03:00.2]}
5... Qa5+ {[%clk 0:02:44.8]} 6. Nd2 {[%clk 0:02:57.3]} 6... e6 {[%clk
0:02:35.3]} 7. c3 {[%clk 0:02:55.9]} 7... Qxc5 {[%clk 0:02:35.2]} 8. Nb3 {[%clk
0:02:55.9]} 8... Qb6 {[%clk 0:02:35]} 9. Nf3 {[%clk 0:02:56]} 9... a5 {[%clk
0:02:35.3]} 10. a4 {[%clk 0:02:51.9]} 10... Nge7 {[%clk 0:02:35]} 11. Bb5 {[%clk
0:02:51]} 11... Bd7 {[%clk 0:02:34.9]} 12. Qe2 {[%clk 0:02:50.1]} 12... Nf5
{[%clk 0:02:34]} 13. g4 {[%clk 0:02:49.5]} 13... Nfe7 {[%clk 0:02:28.8]} 14. Be3
{[%clk 0:02:48.9]} 14... Qc7 {[%clk 0:02:29.5]} 15. O-O {[%clk 0:02:47.2]} 15...
h5 {[%clk 0:02:28.4]} 16. g5 {[%clk 0:02:44.8]} 16... Nf5 {[%clk 0:02:26.7]} 17.
Bf2 {[%clk 0:02:44.8]} 17... h4 {[%clk 0:02:23.7]} 18. Nbd4 {[%clk 0:02:41.9]}
18... Ncxd4 {[%clk 0:02:22.8]} 19. Nxd4 {[%clk 0:02:19.2]} 19... g6 {[%clk
0:02:09.3]} 20. Nxf5 {[%clk 0:02:16.3]} 20... gxf5 {[%clk 0:02:09.4]} 21. Rac1
{[%clk 0:02:13.8]} 21... Bc5 {[%clk 0:01:44.7]} 22. c4 {[%clk 0:02:10.2]} 22...
Bxf2+ {[%clk 0:01:42.7]} 23. Qxf2 {[%clk 0:02:06.9]} 23... d4 {[%clk 0:01:16.1]}
24. Qxd4 {[%clk 0:02:04.3]} 24... Bc6 {[%clk 0:01:16.4]} 25. Qd6 {[%clk
0:01:53]} 25... Qxd6 {[%clk 0:01:15.3]} 26. exd6 {[%clk 0:01:52.9]} 26... Kd7
{[%clk 0:01:14.9]} 27. Rfd1 {[%clk 0:01:51.6]} 27... h3 {[%clk 0:01:14.7]} 28.
Kf2 {[%clk 0:01:50.5]} 28... Rh4 {[%clk 0:01:14.2]} 29. Ke3 {[%clk 0:01:50.3]}
29... Rg4 {[%clk 0:01:12.7]} 30. Rd2 {[%clk 0:01:49.3]} 30... Rh8 {[%clk
0:01:09.5]} 31. c5 {[%clk 0:01:43.3]} 31... Rhh4 {[%clk 0:01:08.7]} 32. Rf2
{[%clk 0:01:38.6]} 32... e5 {[%clk 0:00:47.9]} 33. fxe5 {[%clk 0:01:37.6]} 33...
Re4+ {[%clk 0:00:46.7]} 34. Kd2 {[%clk 0:01:36.8]} 34... Rxe5 {[%clk 0:00:46.4]}
35. Rc3 {[%clk 0:01:13.2]} 35... Rb4 {[%clk 0:00:41.3]} 36. Kc2 {[%clk
0:01:08.2]} 36... Bxb5 {[%clk 0:00:40]} 37. axb5 {[%clk 0:01:08.1]} 37... Rxb5
{[%clk 0:00:40.5]} 38. Rxh3 {[%clk 0:01:07.7]} 38... Rbxc5+ {[%clk 0:00:40.2]}
39. Rc3 {[%clk 0:01:05.7]} 39... Kxd6 {[%clk 0:00:36.9]} 40. h4 {[%clk
0:01:05.1]} 40... Re4 {[%clk 0:00:26.2]} 41. Rxc5 {[%clk 0:01:03.7]} 41... Kxc5
{[%clk 0:00:25.4]} 42. Rxf5+ {[%clk 0:01:03.8]} 42... Kb4 {[%clk 0:00:23.3]} 43.
h5 {[%clk 0:01:03.9]} 43... Re2+ {[%clk 0:00:21.4]} 44. Kb1 {[%clk 0:01:03.9]}
44... Rh2 {[%clk 0:00:20.5]} 45. h6 {[%clk 0:01:02.9]} 45... Kb3 {[%clk
0:00:20.9]} 46. Rb5+ {[%clk 0:01:02]} 46... Kc4 {[%clk 0:00:19.9]} 47. Rxb7
{[%clk 0:01:02.1]} 47... Rh5 {[%clk 0:00:18.9]} 48. Rxf7 {[%clk 0:01:00.1]}
48... Rxg5 {[%clk 0:00:19.2]} 49. h7 {[%clk 0:01:00.5]} 49... Rh5 {[%clk
0:00:19.5]} 50. Rb7 {[%clk 0:01:00.2]} 50... a4 {[%clk 0:00:19.4]} 51. Ka2
{[%clk 0:01:00.4]} 51... Rh3 {[%clk 0:00:19.1]} 52. Ra7 {[%clk 0:00:59.5]} 52...
Kb4 {[%clk 0:00:19.4]} 53. Rb7+ {[%clk 0:00:58.8]} 53... Ka5 {[%clk 0:00:19.7]}
54. Kb1 {[%clk 0:00:59.2]} 54... Ka6 {[%clk 0:00:19.8]} 55. Rf7 {[%clk
0:00:58.7]} 55... Kb5 {[%clk 0:00:19.8]} 56. Kc2 {[%clk 0:00:59]} 56... Kb4
{[%clk 0:00:20.3]} 57. Kd2 {[%clk 0:00:59.3]} 57... Kb3 {[%clk 0:00:20.6]} 58.
Rb7+ {[%clk 0:00:59.4]} 58... Ka2 {[%clk 0:00:20]} 59. Ke2 {[%clk 0:00:59.8]}
59... Rh2+ {[%clk 0:00:18.7]} 60. Kf3 {[%clk 0:01:00.1]} 60... Rh3+ {[%clk
0:00:18.8]} 61. Kg4 {[%clk 0:01:00.5]} 61... Rh1 {[%clk 0:00:18.9]} 62. Kf5
{[%clk 0:01:00.8]} 62... Rxh7 {[%clk 0:00:18.3]} 63. Rxh7 {[%clk 0:01:00]} 63...
Kxb2 {[%clk 0:00:19.2]} 64. Rb7+ {[%clk 0:01:00.1]} 64... Kc2 {[%clk 0:00:18.1]}
65. Ke4 {[%clk 0:00:59]} 65... a3 {[%clk 0:00:18.6]} 66. Ra7 {[%clk 0:00:58.5]}
66... Kb2 {[%clk 0:00:18.4]} 67. Kd3 {[%clk 0:00:59]} 67... a2 {[%clk
0:00:18.8]} 68. Rb7+ {[%clk 0:00:59.5]} 68... Kc1 {[%clk 0:00:18.4]} 69. Ra7
{[%clk 0:00:54.9]} 69... Kb2 {[%clk 0:00:18.1]} 70. Rb7+ {[%clk 0:00:42]} 70...
Kc1 {[%clk 0:00:17.9]} 71. Rc7+ {[%clk 0:00:40.1]} 71... Kb2 {[%clk 0:00:17.5]}
72. Kd2 {[%clk 0:00:35.5]} 72... a1=Q {[%clk 0:00:15.6]} 73. Rb7+ {[%clk
0:00:35.2]} 73... Ka2 {[%clk 0:00:15.6]} 74. Ra7+ {[%clk 0:00:28.9]} 74... Kb1
{[%clk 0:00:14.3]} 75. Rxa1+ {[%clk 0:00:28.3]} 75... Kxa1 {[%clk 0:00:14.8]}
1/2-1/2

[Event "Early-Titled-Tuesday-Blitz-March-26-2024"]
[Site "Chess.com"]
[Date "2024.03.26"]
[Round "2"]
[White "nindjaxx8"]
[Black "frederiksvane"]
[Result "0-1"]
[WhiteElo "2651"]
[BlackElo "2981"]
[TimeControl "180+1"]
[EndTime "8:18:42 PDT"]
[Termination "frederiksvane won by resignation"]

1. d4 {[%clk 0:03:00.9]} 1... Nf6 {[%clk 0:02:59.5]} 2. c4 {[%clk 0:02:57.2]}
2... e6 {[%clk 0:02:59.8]} 3. Nc3 {[%clk 0:02:56.7]} 3... Bb4 {[%clk 0:02:59.8]}
4. Qc2 {[%clk 0:02:57.3]} 4... c5 {[%clk 0:02:59.5]} 5. dxc5 {[%clk 0:02:55.9]}
5... O-O {[%clk 0:02:58.6]} 6. a3 {[%clk 0:02:55.6]} 6... Bxc5 {[%clk
0:02:58.9]} 7. Nf3 {[%clk 0:02:54.8]} 7... d5 {[%clk 0:02:59]} 8. cxd5 {[%clk
0:02:54.6]} 8... exd5 {[%clk 0:02:54.1]} 9. e3 {[%clk 0:02:54.8]} 9... Nc6
{[%clk 0:02:53]} 10. Be2 {[%clk 0:02:53.8]} 10... Bg4 {[%clk 0:02:46.6]} 11. O-O
{[%clk 0:02:51.5]} 11... Rc8 {[%clk 0:02:41.9]} 12. Rd1 {[%clk 0:02:50.2]} 12...
Bb6 {[%clk 0:02:32.9]} 13. h3 {[%clk 0:02:41.7]} 13... Bh5 {[%clk 0:02:31.2]}
14. Qb3 {[%clk 0:02:36.4]} 14... Qe7 {[%clk 0:02:04]} 15. Bd2 {[%clk 0:02:13.4]}
15... d4 {[%clk 0:01:50.9]} 16. exd4 {[%clk 0:01:56.4]} 16... Bxf3 {[%clk
0:01:50]} 17. Bxf3 {[%clk 0:01:50.4]} 17... Nxd4 {[%clk 0:01:50.3]} 18. Qa4
{[%clk 0:01:50.4]} 18... Nxf3+ {[%clk 0:01:09.8]} 19. gxf3 {[%clk 0:01:51.3]}
19... Qe5 {[%clk 0:01:10.5]} 20. Qf4 {[%clk 0:01:46.3]} 20... Qh5 {[%clk
0:01:05.5]} 21. Kg2 {[%clk 0:01:42.2]} 21... Rc6 {[%clk 0:00:57.2]} 22. Qg5
{[%clk 0:01:37.9]} 22... Re8 {[%clk 0:00:35.7]} 23. Re1 {[%clk 0:01:31.6]} 23...
Rce6 {[%clk 0:00:20.7]} 24. Rxe6 {[%clk 0:01:18.3]} 24... Rxe6 {[%clk
0:00:21.6]} 25. Rd1 {[%clk 0:01:08.2]} 25... h6 {[%clk 0:00:21.4]} 26. Qxh5
{[%clk 0:01:06.3]} 26... Nxh5 {[%clk 0:00:22.3]} 27. Ne4 {[%clk 0:01:05.7]}
27... f5 {[%clk 0:00:21.7]} 28. Nc3 {[%clk 0:01:00.1]} 28... Kf7 {[%clk
0:00:21.1]} 29. Nd5 {[%clk 0:00:53.9]} 29... Bd4 {[%clk 0:00:21.4]} 30. Bc3
{[%clk 0:00:48.7]} 30... Bxc3 {[%clk 0:00:21.6]} 31. Nxc3 {[%clk 0:00:49.6]}
31... Nf4+ {[%clk 0:00:21.7]} 32. Kg3 {[%clk 0:00:50.1]} 32... Nh5+ {[%clk
0:00:21.5]} 33. Kg2 {[%clk 0:00:48]} 33... g5 {[%clk 0:00:14]} 34. Rd7+ {[%clk
0:00:37.2]} 34... Re7 {[%clk 0:00:14.3]} 35. Rd6 {[%clk 0:00:32.4]} 35... Re1
{[%clk 0:00:09.1]} 36. Rxh6 {[%clk 0:00:12.4]} 36... Nf4+ {[%clk 0:00:09]} 37.
Kh2 {[%clk 0:00:13.1]} 37... Rf1 {[%clk 0:00:09.6]} 38. Rh7+ {[%clk 0:00:13]}
38... Kg6 {[%clk 0:00:09.8]} 39. Rxb7 {[%clk 0:00:13.9]} 39... Rxf2+ {[%clk
0:00:10.1]} 40. Kg1 {[%clk 0:00:14.5]} 40... Rxf3 {[%clk 0:00:10.3]} 41. Rxa7
{[%clk 0:00:13.1]} 41... Nxh3+ {[%clk 0:00:10.6]} 42. Kg2 {[%clk 0:00:13.4]}
42... g4 {[%clk 0:00:11.2]} 43. Nd5 {[%clk 0:00:13]} 43... Rd3 {[%clk
0:00:09.9]} 44. Ne7+ {[%clk 0:00:10.1]} 44... Kg5 {[%clk 0:00:09.8]} 45. Ra5
{[%clk 0:00:10.7]} 45... Rf3 {[%clk 0:00:07.8]} 46. b4 {[%clk 0:00:07.8]} 46...
Nf4+ {[%clk 0:00:08.2]} 47. Kg1 {[%clk 0:00:08]} 47... Ne2+ {[%clk 0:00:08.6]}
48. Kg2 {[%clk 0:00:08.6]} 48... Nd4 {[%clk 0:00:06]} 49. Rd5 {[%clk 0:00:09]}
49... Rf4 {[%clk 0:00:04.6]} 50. b5 {[%clk 0:00:07.5]} 50... Re4 {[%clk
0:00:05]} 51. Nc6 {[%clk 0:00:06.1]} 51... Nxc6 {[%clk 0:00:04.9]} 52. bxc6
{[%clk 0:00:06.3]} 52... Rc4 {[%clk 0:00:05.6]} 53. Rd6 {[%clk 0:00:06.5]} 53...
Rc2+ {[%clk 0:00:05.9]} 54. Kf1 {[%clk 0:00:06.1]} 54... g3 {[%clk 0:00:06.5]}
55. a4 {[%clk 0:00:06.3]} 55... Kg4 {[%clk 0:00:06.8]} 56. a5 {[%clk 0:00:05.2]}
56... f4 {[%clk 0:00:07.3]} 57. a6 {[%clk 0:00:04.4]} 57... f3 {[%clk
0:00:07.8]} 58. Rd4+ {[%clk 0:00:04.5]} 58... Kf5 {[%clk 0:00:08.1]} 59. Rd1
{[%clk 0:00:02.6]} 59... Kf4 {[%clk 0:00:08.6]} 60. c7 {[%clk 0:00:02.6]} 60...
g2+ {[%clk 0:00:09]} 61. Kg1 {[%clk 0:00:02.8]} 61... Kg3 {[%clk 0:00:09.7]} 62.
Rd2 {[%clk 0:00:01.8]} 62... Rc1+ {[%clk 0:00:09.8]} 0-1